bitfinex-derivatives/quotes_ETHF0:USTF0_20250614
["timestamp","ask_amount","ask_price","bid_price","bid_amount"]
[1749921069175,0.79794,2505.4,2505.2,0.79794]
[1749921069379,0.79794,2505.4,2505.3,2.63624]
[1749921069783,0.79794,2505.4,2505.3,1.8383]
[1749921070590,0.79794,2505.3,2505.2,1.7843]
[1749921070785,0.79802,2505.1,2505.0,0.79803]
[1749921070990,0.79796,2505.3,2505.2,0.79796]
[1749921073194,0.798,2505.2,2505.1,0.798]
[1749921073991,0.79796,2505.3,2505.2,0.79795]
[1749921074190,0.79799,2505.2,2505.1,0.79799]
[1749921074396,0.79797,2505.2,2505.1,0.79798]
[1749921075390,0.79796,2505.3,2505.2,0.79795]
[1749921075596,0.79792,2505.4,2505.3,0.79791]
[1749921075791,0.79789,2505.5,2505.4,0.79788]
[1749921075983,7.64250523,2505.8,2505.2,1.806]
[1749921076188,0.79794,2505.3,2505.2,2.60397]
[1749921076388,0.79794,2505.3,2505.2,1.806]
[1749921077485,3.2078,2505.5,2505.2,1.806]
[1749921077691,0.79794,2505.4,2505.3,0.79792]
[1749921078594,0.79791,2505.5,2505.4,0.79789]
[1749921078790,0.79791,2505.4,2505.3,8.01192]
[1749921079096,0.7979,2505.5,2505.4,0.79788]
[1749921079392,0.79787,2505.6,2505.5,0.79786]
[1749921079797,0.79788,2505.5,2505.4,2.62069]
[1749921079993,0.79788,2505.5,2505.4,1.8228]
[1749921081903,0.79788,2505.5,2505.1,8.01201]
[1749921081904,0.79797,2505.2,2505.1,8.01201]
[1749921082093,0.79797,2505.3,2505.2,0.79795]
[1749921082397,5.71612791,2505.4,2505.3,0.79794]
[1749921082598,6.51403791,2505.4,2505.3,0.79794]
[1749921083191,5.71612791,2505.4,2505.3,0.79794]
[1749921083896,6.51403791,2505.4,2505.3,0.79794]
[1749921084293,5.71612791,2505.4,2505.2,1.6703]
[1749921084499,6.51405791,2505.4,2505.3,0.79794]
[1749921084898,5.71612791,2505.4,2505.3,0.79794]
[1749921085590,0.06809268,2505.4,2505.3,0.79794]
[1749921086295,0.86600268,2505.4,2505.3,0.79794]
[1749921086494,0.06809268,2505.4,2505.3,0.79794]
[1749921087202,0.06809268,2505.4,2505.3,2.55184]
[1749921087403,0.06809268,2505.4,2505.3,2.53234]
[1749921088297,0.06809268,2505.4,2505.3,9.91362175]
[1749921088705,0.06809268,2505.4,2505.3,7.53234]
[1749921089001,9.65953206,2506.1,2505.7,1.99454]
[1749921089202,0.79774,2506.0,2505.9,0.79773]
[1749921089402,0.79774,2506.0,2505.9,2.55163]
[1749921089705,9.65954206,2506.1,2506.0,0.79772]
[1749921090006,9.65954206,2506.1,2506.0,2.63062]
[1749921090503,9.65954206,2506.1,2506.0,1.8329]
[1749921091298,6.45174206,2506.1,2506.0,1.8329]
[1749921092296,6.45174206,2506.1,2506.0,2.63062]
[1749921092496,5.65402206,2506.1,2506.0,2.63062]
[1749921093205,6.45171206,2506.1,2506.0,2.63062]
[1749921093406,6.45171206,2506.1,2506.0,1.8329]
[1749921094104,0.79775,2505.9,2505.8,1.70748683]
[1749921094402,0.79775,2505.9,2505.8,0.00598683]
[1749921097807,1.78078879,2505.9,2505.8,0.00598683]
[1749921098206,0.79785,2505.6,2505.5,1.7659]
[1749921098407,1.99447,2505.8,2505.4,1.7236]
[1749921098408,3.2078,2505.7,2505.4,1.7236]
[1749921098707,0.79788,2505.5,2505.4,1.7236]
[1749921098909,0.79788,2505.5,2505.4,3.4184]
[1749921099098,0.79788,2505.5,2505.4,4.21631]
[1749921099303,0.79788,2505.5,2505.4,3.4184]
[1749921099911,0.79788,2505.5,2505.4,4.21631]
[1749921100304,0.79788,2505.5,2505.4,3.4184]
[1749921100611,0.79788,2505.5,2505.4,4.21631]
[1749921100814,0.79788,2505.5,2505.4,3.4184]
[1749921101113,0.79788,2505.5,2505.4,4.21631]
[1749921101308,0.79788,2505.5,2505.4,3.4184]
[1749921101711,0.79787,2505.6,2505.5,0.79785]
[1749921101908,0.79787,2505.6,2505.5,2.48375]
[1749921102212,0.79787,2505.6,2505.5,1.6859]
[1749921103114,0.79787,2505.6,2505.5,2.48378]
[1749921104115,5.64803523,2505.7,2505.6,0.79785]
[1749921104308,5.64803523,2505.7,2505.6,2.48375]
[1749921104516,6.44584523,2505.7,2505.6,1.6859]
[1749921106911,0.79788,2505.5,2505.4,27.5566]
[1749921107218,0.79788,2505.5,2505.4,29.2751]
[1749921107823,0.79788,2505.5,2505.4,30.07301]
[1749921108722,0.79788,2505.5,2505.4,29.2751]
[1749921108924,0.79788,2505.5,2505.4,30.07301]
[1749921109117,0.79788,2505.5,2505.4,29.2751]
[1749921109815,0.79788,2505.5,2505.4,30.07301]
[1749921110223,0.79788,2505.5,2505.4,29.2751]
[1749921110526,0.86597268,2505.5,2505.4,30.07301]
[1749921110821,0.86597268,2505.5,2505.4,29.2751]
[1749921111619,0.86597268,2505.5,2505.4,3.4421]
[1749921112429,0.79791,2505.4,2505.3,7.181]
[1749921112629,0.79794,2505.3,2505.2,1.75888683]
[1749921112931,0.79794,2505.3,2505.2,3.53848683]
[1749921114029,0.79794,2505.3,2505.2,1.78558683]
[1749921114730,1.78221284,2505.3,2505.2,0.00598683]
[1749921118240,0.79804,2505.0,2504.9,1.7967]
[1749921118439,4.00584,2505.0,2504.9,1.7967]
[1749921119341,0.7981,2504.8,2504.7,0.00598683]
[1749921119837,0.7981,2504.8,2504.7,1.72788683]
[1749921121739,0.7981,2504.8,2504.7,2.52601683]
[1749921122135,0.7981,2504.8,2504.7,1.72788683]
[1749921123445,0.79816,2504.6,2504.5,3.4893]
[1749921124845,0.79816,2504.6,2504.5,1.7254]
[1749921125745,0.79816,2504.6,2504.3,0.00399122]
[1749921125746,0.79823,2504.4,2504.3,0.00399122]
[1749921125952,4.00603,2504.4,2504.3,0.00399122]
[1749921126638,4.00603,2504.4,2504.3,1.81769122]
[1749921126839,0.79823,2504.4,2504.3,1.81769122]
[1749921127033,0.79819,2504.6,2504.5,0.79817]
[1749921127545,0.79823,2504.5,2504.4,0.79821]
[1749921127745,0.79823,2504.5,2504.4,0.77155]
[1749921128142,0.79823,2504.4,2504.3,2.61593122]
[1749921129246,0.7982,2504.6,2504.5,0.79818]
[1749921129447,0.79822,2504.5,2504.4,0.7982]
[1749921130147,8.85583523,2504.7,2504.3,0.00399122]
[1749921130148,0.79823,2504.4,2504.3,0.00399122]
[1749921130537,4.00603,2504.4,2504.3,0.00399122]
[1749921131646,4.00603,2504.4,2503.5,5.59394004]
[1749921131647,10.85143523,2504.4,2503.5,5.59394004]
[1749921131841,0.79841,2503.9,2503.8,0.7984]
[1749921133250,0.79841,2503.9,2503.8,0.79842]
[1749921133849,3.2078,2504.1,2504.0,0.79836]
[1749921134154,0.7983,2504.2,2504.1,0.79832]
[1749921135943,5.64803523,2504.4,2504.2,0.79827]
[1749921135944,0.79828,2504.3,2504.2,0.79827]
[1749921136144,6.44627523,2504.4,2504.3,0.79826]
[1749921136349,5.64803523,2504.4,2504.3,0.79826]
[1749921137853,0.79818,2504.6,2504.5,0.7982]
[1749921138054,0.87219951,2504.8,2504.7,0.79813]
[1749921138249,0.79814,2504.7,2504.6,0.79814]
[1749921138556,0.79824,2504.4,2504.3,0.79824]
[1749921138754,0.79822,2504.5,2504.4,0.79821]
[1749921140150,0.79831,2504.2,2504.1,0.7983]
[1749921140455,3.21378683,2504.8,2504.0,2.64943]
[1749921140456,0.79832,2504.1,2504.0,2.64943]
[1749921140654,0.79832,2504.2,2504.1,0.79831]
[1749921142360,0.79828,2504.3,2504.2,0.79828]
[1749921143061,4.00601,2504.5,2504.4,0.79823]
[1749921144256,3.2078,2504.5,2504.4,0.79823]
[1749921144755,3.2078,2504.5,2504.0,4.23724004]
[1749921144957,0.79831,2504.2,2504.1,0.79829]
[1749921145259,0.79828,2504.3,2504.2,0.79828]
[1749921145653,3.2078,2504.5,2504.0,8.9751]
[1749921145955,0.79832,2504.1,2504.0,8.9751]
[1749921146154,0.79832,2504.1,2504.0,1.8511]
[1749921147561,1.99598,2503.9,2503.4,9.51014004]
[1749921147758,0.79852,2503.5,2503.4,11.36314004]
[1749921147955,0.79852,2503.5,2503.4,8.977]
[1749921148160,0.79861,2503.2,2503.1,0.79864]
[1749921148560,0.79859,2503.3,2503.2,0.7986]
[1749921149861,0.80454683,2503.4,2503.3,0.79858]
[1749921150059,0.79861,2503.2,2503.1,2.50753]
[1749921150265,0.79861,2503.2,2503.1,1.7089]
[1749921151064,0.79861,2503.2,2503.1,2.50754]
[1749921151259,0.79861,2503.2,2503.1,1.7089]
[1749921152059,0.39878819,2503.4,2503.1,1.7089]
[1749921152259,0.79859,2503.3,2503.2,0.79859]
[1749921152464,0.00598683,2503.4,2503.3,0.79858]
[1749921154062,0.00598683,2503.4,2503.3,2.61718]
[1749921154967,4.0062,2503.9,2503.8,0.79842]
[1749921155564,0.79844,2503.8,2503.7,0.79843]
[1749921155762,0.79845,2503.7,2503.6,2.58156]
[1749921156065,0.79845,2503.7,2503.6,1.7831]
[1749921156569,0.79845,2503.7,2503.6,2.58158]
[1749921158271,0.79843,2503.8,2503.7,0.79842]
[1749921158570,0.79843,2503.8,2503.7,1.6999]
[1749921158770,0.79843,2503.8,2503.7,2.49835]
[1749921159362,0.79843,2503.8,2503.7,1.6999]
[1749921159560,6.44646523,2503.8,2503.7,1.6999]
[1749921160373,6.44646523,2503.8,2503.7,4.32725]
[1749921160779,0.79843,2503.8,2503.7,4.32725]
[1749921161279,3.21378683,2503.9,2503.8,0.79842]
[1749921161485,4.01217683,2503.9,2503.8,2.60362]
[1749921162285,4.01217683,2503.9,2503.7,1.8289]
[1749921162286,0.79842,2503.8,2503.7,1.8289]
[1749921162593,0.79852,2503.5,2503.4,0.80452683]
[1749921162780,0.79848,2503.7,2503.6,0.79844]
[1749921164385,0.79848,2503.6,2503.5,2.6385]
[1749921166587,0.79847,2503.7,2503.6,0.79846]
[1749921166789,0.80440683,2503.9,2503.8,0.79842]
[1749921167693,0.00598683,2503.9,2503.8,0.79842]
[1749921169292,0.07407951,2503.9,2503.8,0.79842]
[1749921169492,0.87246951,2503.9,2503.8,0.79842]
[1749921171787,0.07407951,2503.9,2503.8,0.79842]
[1749921172890,0.07407951,2503.9,2503.8,3.18456004]
[1749921173088,0.07407951,2503.9,2503.8,8.18456004]
[1749921173291,3.2078,2504.4,2503.8,8.18456004]
[1749921173292,3.2078,2504.4,2504.3,0.79826]
[1749921173490,4.00603,2504.4,2504.3,0.79826]
[1749921173891,0.79829,2504.2,2504.1,7.9233]
[1749921174994,0.79829,2504.3,2504.2,0.79826]
[1749921175300,4.01203683,2504.4,2504.3,0.79826]
[1749921175795,0.79836,2504.0,2503.9,3.6572]
[1749921176194,0.79836,2504.0,2503.9,4.45559]
[1749921176599,0.79836,2504.0,2503.9,3.6572]
[1749921177095,0.79836,2504.0,2503.9,1.8147]
[1749921177592,0.79845,2503.7,2503.6,9.66106]
[1749921177798,0.79844,2503.8,2503.7,0.79843]
[1749921178699,0.06809268,2503.9,2503.8,0.79842]
[1749921179093,0.86648268,2503.9,2503.8,0.79842]
[1749921179695,0.06809268,2503.9,2503.8,0.79842]
[1749921180793,0.06809268,2503.9,2503.8,2.59542]
[1749921181602,0.06809268,2503.9,2503.8,4.98156004]
[1749921182003,0.06809268,2503.9,2503.8,4.18314004]
[1749921182204,0.79842,2503.8,2503.7,7.89043]
[1749921182502,0.79842,2503.8,2503.7,9.77113]
[1749921183705,0.06809268,2503.9,2503.8,0.79842]
[1749921183906,0.06809268,2503.9,2503.8,2.67912]
[1749921184500,0.79831,2504.2,2504.1,0.79832]
[1749921185306,0.79829,2504.3,2504.2,0.79827]
[1749921186106,0.00598683,2504.4,2504.3,0.79826]
[1749921186309,6.83e-06,2504.4,2504.3,3.18440004]
[1749921186511,6.83e-06,2504.4,2504.3,5.79826]
[1749921187103,6.83e-06,2504.4,2504.3,40.44246]
[1749921189407,6.83e-06,2504.4,2504.3,42.82733568]
[1749921189598,6.83e-06,2504.4,2504.3,40.44246]
[1749921189804,6.83e-06,2504.4,2504.3,42.82654189]
[1749921190205,6.83e-06,2504.4,2504.3,37.82054189]
[1749921190506,6.83e-06,2504.4,2504.3,5.03054189]
[1749921190908,6.83e-06,2504.4,2504.3,35.43246]
[1749921191514,6.83e-06,2504.4,2504.3,40.43246]
[1749921192812,6.83e-06,2504.4,2504.3,43.6066734]
[1749921193410,8.85583523,2505.3,2505.2,0.79797]
[1749921193411,5.64803523,2505.3,2505.2,0.79797]
[1749921193603,3.2078,2505.6,2505.5,0.79788]
[1749921195518,4.00565,2505.6,2505.5,0.79788]
[1749921195817,3.2078,2505.6,2505.5,0.79788]
[1749921196806,3.2078,2505.6,2505.4,0.7979]
[1749921197005,0.7979,2505.5,2505.4,33.5659]
[1749921197211,4.00567,2505.6,2505.5,0.79788]
[1749921198319,3.2078,2505.6,2505.5,0.79788]
[1749921199210,4.00565,2505.6,2505.5,0.79788]
[1749921199412,0.79785,2505.6,2505.5,0.79788]
[1749921199614,6.44587523,2505.7,2505.6,0.79785]
[1749921200117,5.64803523,2505.7,2505.6,0.79785]
[1749921201513,0.00598683,2505.8,2505.7,0.79781]
[1749921201713,0.80376683,2505.8,2505.7,0.79781]
[1749921201921,0.80376683,2505.8,2505.7,26.46381]
[1749921202116,0.00598683,2505.8,2505.7,26.46381]
[1749921202809,0.80376683,2505.8,2505.7,26.46381]
[1749921203412,0.80376683,2505.8,2505.7,0.79781]
[1749921203618,0.80376683,2505.8,2505.7,32.749]
[1749921204320,0.80376683,2505.8,2505.7,33.54681]
[1749921204519,0.80376683,2505.8,2505.7,32.749]
[1749921204721,0.80376683,2505.8,2505.7,33.54681]
[1749921205428,0.80376683,2505.8,2505.7,7.089]
[1749921205822,0.80376683,2505.8,2505.7,7.88681]
[1749921207120,0.80376683,2505.8,2505.7,7.089]
[1749921207427,0.80376683,2505.8,2505.7,7.88681]
[1749921207822,0.80376683,2505.8,2505.7,7.089]
[1749921208529,0.80376683,2505.8,2505.6,26.45683]
[1749921208530,0.79781,2505.7,2505.6,0.79783]
[1749921208714,0.79781,2505.7,2505.6,33.50183]
[1749921212422,0.80379683,2505.8,2505.7,0.79781]
[1749921213326,0.00598683,2505.8,2505.7,2.67991]
[1749921213527,0.00598683,2505.8,2505.7,6.41621]
[1749921215031,0.07407951,2505.8,2505.7,6.41621]
[1749921215523,0.87185951,2505.8,2505.7,6.41621]
[1749921216537,0.87185951,2505.8,2505.7,1.8467]
[1749921216830,0.87185951,2505.8,2505.7,33.48581]
[1749921217930,0.07407951,2505.8,2505.7,33.48581]
[1749921220229,0.07407951,2505.8,2505.7,35.31091]
[1749921220826,0.87185951,2505.8,2505.7,2.62291]
[1749921221033,0.79781,2505.7,2505.6,2.38114802]
[1749921221232,0.79781,2505.7,2505.6,32.674]
[1749921221933,0.79781,2505.7,2505.6,33.47185]
[1749921223536,0.79781,2505.7,2505.6,0.79785]
[1749921223737,0.79781,2505.7,2505.6,33.46685]
[1749921225747,0.79781,2505.7,2505.6,32.669]
[1749921226747,0.79781,2505.7,2505.6,33.46685]
[1749921226946,0.79781,2505.7,2505.6,35.33405]
[1749921230239,0.86590268,2505.7,2505.6,35.33405]
[1749921237446,0.06809268,2505.7,2505.6,35.33405]
[1749921238046,0.06809268,2505.7,2505.6,38.50891403]
[1749921238945,0.06809268,2505.7,2505.6,2.66505]
[1749921239250,0.06809268,2505.7,2505.6,36.86309616]
[1749921239456,0.86590268,2505.7,2505.6,37.66094616]
[1749921239748,0.06809268,2505.7,2505.6,37.66094616]
[1749921240049,0.06809268,2505.7,2505.6,35.27005]
[1749921241948,0.06809268,2505.7,2505.6,38.44491403]
[1749921242149,0.06809268,2505.7,2505.6,35.27005]
[1749921243751,0.06809268,2505.7,2505.6,2.66505]
[1749921243953,0.06809268,2505.7,2505.6,35.26005]
[1749921246663,0.86590268,2505.7,2505.6,35.26005]
[1749921246856,0.86590268,2505.7,2505.6,35.25505]
[1749921247456,0.86590268,2505.7,2505.6,37.64527701]
[1749921248662,0.06809268,2505.7,2505.6,37.64527701]
[1749921249163,0.86590268,2505.7,2505.6,37.64527701]
[1749921251363,0.86590268,2505.7,2505.6,9.40722701]
[1749921251561,0.86590268,2505.7,2505.6,32.58]
[1749921254063,0.86590268,2505.7,2505.6,33.37785]
[1749921254258,0.79785,2505.6,2505.5,4.97568701]
[1749921254563,0.79785,2505.6,2505.5,37.54868701]
[1749921256964,0.79785,2505.6,2505.5,4.17782701]
[1749921257261,0.79785,2505.6,2505.5,25.552]
[1749921258670,0.79788,2505.5,2505.4,9.40722701]
[1749921258869,0.79788,2505.5,2505.4,7.017]
[1749921259069,0.79791,2505.4,2505.3,0.00598683]
[1749921259270,5.92749551,2505.4,2505.3,0.00598683]
[1749921259465,7.64989551,2505.4,2505.3,0.00598683]
[1749921260667,6.66191,2505.4,2505.3,0.00598683]
[1749921261870,5.64803523,2505.5,2505.4,0.79791]
[1749921262065,5.64803523,2505.5,2505.4,26.34191]
[1749921262261,6.44591523,2505.5,2505.4,28.13701]
[1749921262475,0.79791,2505.4,2505.3,0.00598683]
[1749921262772,4.00571,2505.4,2505.3,0.00598683]
[1749921267379,5.80801,2505.4,2505.3,0.00598683]
[1749921267564,10.80801,2505.4,2505.3,0.00598683]
[1749921268573,11.79680787,2505.4,2505.3,0.00598683]
[1749921268771,0.79801,2505.1,2505.0,24.141]
[1749921268973,0.79807,2504.9,2504.8,8.8188]
[1749921269173,0.79807,2504.9,2504.8,35.1489]
[1749921269973,0.79807,2504.9,2504.8,34.3508]
[1749921270181,0.79807,2504.9,2504.8,35.1489]
[1749921270478,0.7981,2504.8,2504.7,27.4253]
[1749921270782,0.7981,2504.8,2504.7,28.22343]
[1749921271282,0.7981,2504.8,2504.7,27.4253]
[1749921271480,0.7981,2504.8,2504.7,27.4263]
[1749921271678,0.79813,2504.7,2504.6,0.00598683]
[1749921274783,0.79813,2504.7,2504.6,1.76388683]
[1749921275375,0.79813,2504.7,2504.6,0.00598683]
[1749921275977,0.86622268,2504.7,2504.6,0.00598683]
[1749921276177,0.86622268,2504.7,2504.6,1.82708683]
[1749921277984,6.51425791,2504.7,2504.6,1.82708683]
[1749921278186,6.51425791,2504.7,2504.6,2.62525683]
[1749921278387,5.71612791,2504.7,2504.6,2.62525683]
[1749921279287,6.51425791,2504.7,2504.6,9.61025683]
[1749921279489,6.51425791,2504.7,2504.6,6.99098683]
[1749921280284,6.51425791,2504.7,2504.6,8.74358683]
[1749921281682,6.51425791,2504.7,2504.6,1.75858683]
[1749921282478,6.51425791,2504.7,2504.6,0.00598683]
[1749921284185,0.79826,2504.3,2504.2,3.4748]
[1749921284390,0.79826,2504.3,2504.2,5.3241]
[1749921285487,0.79832,2504.1,2504.0,0.00598683]
[1749921285987,0.79832,2504.1,2504.0,2.70614683]
[1749921287798,0.79832,2504.1,2504.0,1.90778683]
[1749921288592,0.79832,2504.1,2504.0,2.70614683]
[1749921289590,5.64803523,2504.3,2504.0,1.90778683]
[1749921289785,0.00598683,2504.5,2504.1,3.723]
[1749921289986,0.00598683,2504.5,2504.4,0.79823]
[1749921290792,0.80418683,2504.5,2504.4,0.79823]
[1749921290992,0.80418683,2504.5,2504.4,4.36823]
[1749921292296,0.80418683,2504.5,2504.4,3.57]
[1749921292697,0.80418683,2504.5,2504.4,1.8428]
[1749921293792,0.80418683,2504.5,2504.4,4.45873]
[1749921294096,0.80418683,2504.5,2504.4,3.6605]
[1749921295597,6.45222206,2504.5,2504.4,3.6605]
[1749921296698,9.66002206,2504.5,2504.4,3.6605]
[1749921298197,0.79823,2504.4,2504.3,1.7572]
[1749921301510,6.44626523,2504.4,2504.3,1.7572]
[1749921304319,6.51435791,2504.4,2504.3,1.7572]
[1749921305222,6.51435791,2504.4,2504.3,3.5439]
[1749921305921,0.79832,2504.1,2504.0,0.00598683]
[1749921306220,4.00612,2504.1,2504.0,0.00598683]
[1749921306624,4.00612,2504.1,2504.0,0.80434683]
[1749921306922,6.51437791,2504.4,2504.3,0.79826]
[1749921307718,5.71612791,2504.4,2504.3,0.79826]
[1749921307920,0.06809268,2504.4,2504.3,0.79826]
[1749921308516,0.06809268,2504.4,2504.3,4.51986]
[1749921309825,0.86632268,2504.4,2504.3,4.51986]
[1749921311421,0.06809268,2504.4,2504.3,4.51986]
[1749921312827,0.00598683,2504.5,2504.4,0.79823]
[1749921313029,0.00598683,2504.5,2504.4,34.99443]
[1749921313830,0.79806,2505.0,2504.9,0.79807]
[1749921315223,0.79806,2505.0,2504.9,2.57827]
[1749921316228,0.79804,2505.1,2505.0,0.79802]
[1749921316928,0.79804,2505.1,2505.0,2.60632]
[1749921317829,0.79804,2505.1,2505.0,1.8083]
[1749921319028,0.79804,2505.1,2505.0,2.60634]
[1749921319531,0.86613268,2505.1,2505.0,2.60634]
[1749921319933,0.06809268,2505.1,2505.0,2.60634]
[1749921320131,0.06809268,2505.1,2505.0,4.36844]
[1749921320934,0.86610268,2505.1,2505.0,4.36844]
[1749921321332,0.06809268,2505.1,2505.0,4.36844]
[1749921326737,0.00598683,2505.2,2505.1,0.79801]
[1749921327037,0.00598683,2505.2,2505.1,2.63261]
[1749921331141,4.00562,2505.7,2505.6,0.79785]
[1749921331334,0.79782,2505.7,2505.6,0.79785]
[1749921331532,0.79781,2505.8,2505.7,0.79778]
[1749921331929,5.0,2505.8,2505.5,0.00598683]
[1749921332133,4.00565,2505.6,2505.5,0.00598683]
[1749921332528,12.48925,2505.6,2505.5,0.00598683]
[1749921333726,10.75905,2505.6,2505.5,0.00598683]
[1749921334427,12.50985,2505.6,2505.5,0.00598683]
[1749921334741,7.57794268,2505.6,2505.5,0.00598683]
[1749921335133,5.82714268,2505.6,2505.5,0.00598683]
[1749921335338,0.06809268,2505.6,2505.5,0.80386683]
[1749921335742,0.06809268,2505.6,2505.5,7.72086683]
[1749921335942,3.2078,2505.9,2505.8,0.79778]
[1749921336142,0.00598683,2506.0,2505.9,0.79775]
[1749921336342,0.00598683,2506.0,2505.9,7.71475]
[1749921336640,0.80370683,2506.0,2505.9,7.71475]
[1749921336841,0.00598683,2506.0,2505.9,7.71475]
[1749921341547,0.00598683,2506.0,2505.9,6.917]
[1749921341548,0.80370683,2506.0,2505.9,6.917]
[1749921341745,0.79781,2505.7,2505.6,8.7617]
[1749921342044,0.79781,2505.7,2505.5,0.00598683]
[1749921342045,0.79785,2505.6,2505.5,0.00598683]
[1749921342444,2.62175,2505.6,2505.5,0.00598683]
[1749921342640,0.79785,2505.6,2505.5,0.00598683]
[1749921342839,0.86594268,2505.6,2505.5,0.00598683]
[1749921345943,6.51397791,2505.6,2505.5,0.00598683]
[1749921346846,6.51397791,2505.6,2505.5,0.80386683]
[1749921347550,5.71612791,2505.6,2505.5,0.80386683]
[1749921348549,6.51397791,2505.6,2505.5,0.80386683]
[1749921349455,6.51397791,2505.6,2505.5,0.00598683]
[1749921352056,5.71612791,2505.6,2505.5,0.80386683]
[1749921352758,5.71612791,2505.6,2505.5,2.58366683]
[1749921355850,6.51397791,2505.6,2505.5,1.78578683]
[1749921356552,5.71612791,2505.6,2505.5,2.58366683]
[1749921356752,5.71612791,2505.6,2505.5,4.46266683]
[1749921357555,6.51397791,2505.6,2505.5,4.46266683]
[1749921357852,0.86594268,2505.6,2505.5,4.46266683]
[1749921358456,0.86594268,2505.6,2505.5,3.66478683]
[1749921358654,0.86594268,2505.6,2505.5,4.46266683]
[1749921358853,0.06809268,2505.6,2505.5,4.46266683]
[1749921359053,0.86594268,2505.6,2505.5,4.46266683]
[1749921359450,0.06809268,2505.6,2505.5,4.46266683]
[1749921361455,0.86594268,2505.6,2505.5,4.46266683]
[1749921362652,0.06809268,2505.6,2505.5,4.46266683]
[1749921363149,0.06809268,2505.6,2505.5,7.67046683]
[1749921364053,0.00598683,2506.0,2505.9,0.79775]
[1749921364254,0.00598683,2506.0,2505.9,33.04675]
[1749921364645,0.00598683,2506.0,2505.9,36.82105]
[1749921366250,3.2078,2506.3,2506.2,0.79766]
[1749921366561,0.79757,2506.5,2506.4,0.79757]
[1749921366857,6.44552523,2506.8,2506.7,0.7975]
[1749921367046,5.64803523,2506.8,2506.5,27.2319]
[1749921367253,6.44549523,2506.8,2506.7,0.7975]
[1749921367449,5.64803523,2506.8,2506.7,0.7975]
[1749921367656,3.21378683,2506.9,2506.8,0.79746]
[1749921367860,3.21378683,2506.9,2506.8,36.24526]
[1749921367861,0.00598683,2506.9,2506.8,36.24526]
[1749921368060,0.79729,2507.4,2507.2,0.79732]
[1749921368259,0.79727,2507.4,2507.3,6.885]
[1749921368563,3.2078,2507.5,2506.9,1.8523]
[1749921368758,0.79739,2507.1,2507.0,32.239]
[1749921369959,4.00516,2507.2,2507.0,32.239]
[1749921370158,0.79736,2507.2,2507.0,34.0913]
[1749921370357,0.00598683,2507.3,2507.0,34.88869]
[1749921370861,0.79737,2507.1,2507.0,32.239]
[1749921371058,0.79743,2506.9,2506.8,1.91028683]
[1749921371263,0.79743,2506.9,2506.8,34.14128683]
[1749921371462,0.79743,2506.9,2506.8,34.93874683]
[1749921371667,3.2078,2507.2,2506.8,34.14128683]
[1749921371966,0.00598683,2507.3,2506.9,1.7718]
[1749921372172,0.80330683,2507.3,2507.1,0.79735]
[1749921372458,0.00598683,2507.3,2507.2,26.14234]
[1749921374667,0.00598683,2507.3,2507.2,33.02534]
[1749921375769,0.80329683,2507.3,2507.2,33.02534]
[1749921376468,0.00598683,2507.3,2507.2,33.02534]
[1749921376771,0.00598683,2507.3,2507.2,34.88704]
[1749921378569,3.2078,2507.8,2507.7,0.79718]
[1749921378770,4.00495,2507.8,2507.7,26.12818]
[1749921378961,0.79715,2507.9,2507.8,0.79714]
[1749921379367,0.79715,2507.9,2507.8,2.65884]
[1749921379768,0.79715,2507.9,2507.8,1.8617]
[1749921380669,0.79715,2507.9,2507.8,2.65885]
[1749921380875,0.00399122,2508.1,2507.8,1.8617]
[1749921381074,0.00399122,2508.1,2507.9,26.1211]
[1749921381075,0.79708,2508.0,2507.9,26.1211]
[1749921381275,0.00399122,2508.1,2508.0,0.79708]
[1749921381577,0.80104122,2508.1,2508.0,0.79708]
[1749921382066,0.80104122,2508.1,2508.0,2.64608]
[1749921382463,0.80104122,2508.1,2508.0,1.849]
[1749921384275,0.00399122,2508.1,2508.0,9.52708]
[1749921384979,0.00399122,2508.1,2507.7,1.8976]
[1749921385183,0.79708,2508.0,2507.9,7.67809]
[1749921385676,0.80106122,2508.1,2508.0,0.79708]
[1749921385879,0.80106122,2508.1,2508.0,2.56448]
[1749921386269,0.00399122,2508.1,2508.0,2.56448]
[1749921387377,0.79715,2507.9,2507.8,0.79713]
[1749921387681,0.00399122,2508.1,2508.0,0.79708]
[1749921390182,3.2078,2508.6,2508.5,0.79692]
[1749921390790,3.2078,2508.6,2508.5,2.65162]
[1749921391580,0.79688,2508.7,2508.6,0.79689]
[1749921391781,3.2078,2508.9,2508.5,1.8547]
[1749921392088,0.79684,2508.8,2508.7,0.79684]
[1749921392376,3.2078,2508.9,2508.5,3.6806]
[1749921392586,0.79686,2508.7,2508.6,32.152]
[1749921393277,0.79685,2508.8,2508.7,0.79684]
[1749921393786,0.79686,2508.7,2508.6,32.152]
[1749921394079,0.79686,2508.7,2508.6,6.852]
[1749921394284,0.79686,2508.7,2508.6,32.94289]
[1749921394477,0.79686,2508.7,2508.6,32.146]
[1749921395181,1.80556,2508.7,2508.6,32.146]
[1749921396090,0.79694,2508.5,2508.4,0.79696]
[1749921396279,0.79691,2508.6,2508.5,0.7969]
[1749921396583,0.79696,2508.5,2508.4,0.79693]
[1749921396785,0.79696,2508.5,2508.4,7.64893]
[1749921396984,0.79691,2508.6,2508.5,0.7969]
[1749921397180,0.83091474,2508.6,2508.5,0.7969]
[1749921397682,0.79692,2508.5,2508.4,32.93893]
[1749921397883,0.79692,2508.5,2508.4,0.79693]
[1749921398179,0.86492948,2508.5,2508.4,32.93693]
[1749921399287,0.86492948,2508.5,2508.3,2.62885683]
[1749921399288,0.79696,2508.4,2508.3,2.62885683]
[1749921399485,0.79696,2508.4,2508.3,0.00598683]
[1749921400290,0.93299024,2508.4,2508.3,0.00598683]
[1749921400886,0.96700092,2508.4,2508.3,0.00598683]
[1749921401281,1.96156858,2508.4,2508.3,0.00598683]
[1749921401883,7.60960381,2508.4,2508.3,0.00598683]
[1749921402288,7.64361496,2508.4,2508.3,0.00598683]
[1749921405184,12.64361496,2508.4,2508.3,0.00598683]